fUSD/lending_fUSD_20260111
["ID","MTS","AMOUNT","RATE_DAILY","PERIOD"]
[401364335,1768157443093,-500.0,0.00017073,2]
[401364337,1768157443102,-500.0,0.00017073,2]
[401364338,1768157443111,-439.76863979,0.00017073,2]
[401364340,1768157443121,-500.99700202,0.00017073,2]
[401364342,1768157443130,-500.0,0.00017073,2]
[401364344,1768157443139,-500.0,0.00017073,2]
[401364346,1768157443148,-500.0,0.00017073,2]
[401364349,1768157443158,-500.0,0.00017073,2]
[401364350,1768157443167,-500.0,0.00017073,2]
[401364352,1768157443176,-500.45639995,0.00017073,2]
[401364355,1768157443185,-500.0,0.00017073,2]
[401364356,1768157443194,-500.0,0.00017073,2]
[401364357,1768157443203,-500.0,0.00017073,2]
[401364358,1768157443212,-500.0,0.00017073,2]
[401364359,1768157443220,-368.2931148,0.00017073,2]
[401364360,1768157443229,-500.0,0.00017073,2]
[401364361,1768157443238,-468.77065485,0.00017073,2]
[401364362,1768157443247,-468.77065485,0.00017091,2]
[401364363,1768157443256,-150.0,0.000171,2]
[401364364,1768157443266,-150.0,0.000171,2]
[401364365,1768157443274,-150.0,0.000171,2]
[401364366,1768157443283,-165.37281025,0.000171,2]
[401364367,1768157443292,-468.77065485,0.00017109,2]
[401364368,1768157443300,-500.0,0.00017119,6]
[401364369,1768157443309,-468.77065485,0.00017127,2]
[401364371,1768157443319,-1589.41,0.00017128,2]
[401364372,1768157443328,-468.77065485,0.00017145,2]
[401364373,1768157443337,-468.77065485,0.00017164,2]
[401364374,1768157443347,-150.0,0.00017169,2]
[401364375,1768157443356,-647.9503468,0.00017174,6]
[401364376,1768157443367,-468.77065485,0.00017182,2]
[401364377,1768157443376,-468.77065485,0.000172,2]
[401364378,1768157443385,-58800.0,0.000172,6]
[401364379,1768157443394,-468.77065485,0.00017218,2]
[401364380,1768157443405,-150.0,0.00017229,2]
[401364381,1768157443414,-150.0,0.00017229,2]
[401364382,1768157443423,-468.77065485,0.00017236,2]
[401364383,1768157443432,-11637.69415423,0.00017246,2]
[401364384,1768157443441,-468.77065485,0.00017255,2]
[401364385,1768157443451,-468.77065485,0.00017273,2]
[401364387,1768157443460,-150.0,0.0001728,2]
[401364389,1768157443469,-150.0,0.0001728,2]
[401364391,1768157443478,-150.0,0.0001728,2]
[401364393,1768157443487,-150.0,0.0001728,2]
[401364394,1768157443497,-3798.0,0.00017289,2]
[401364395,1768157443506,-11601.40057606,0.00017289,2]
[401364396,1768157443516,-468.77065485,0.00017291,2]
[401364397,1768157443526,-150.0,0.00017291,2]
[401364398,1768157443535,-78400.0,0.000173,6]
[401364399,1768157443544,-150.0,0.00017308,2]
[401364400,1768157443555,-468.77065485,0.00017309,2]
[401364401,1768157443565,-330.14190427,0.00017314,2]
[401364402,1768157443575,-150.0,0.00017325,2]
[401364403,1768157443585,-468.77065485,0.00017327,2]
[401364404,1768157443595,-468.77065485,0.00017345,2]
[401364405,1768157443605,-468.77065485,0.00017364,2]
[401364406,1768157443615,-468.77065485,0.00017382,2]
[401364407,1768157443624,-468.77065485,0.000174,2]
[401364408,1768157443634,-98000.0,0.000174,6]
[401364409,1768157443644,-1589.41,0.00017402,2]
[401364410,1768157443653,-4225.8,0.00017414,2]
[401364411,1768157443663,-468.77065485,0.00017418,2]
[401364412,1768157443673,-468.77065485,0.00017436,2]
[401364413,1768157443683,-298.0985927,0.00017442,2]
[401364414,1768157443692,-150.0,0.00017446,2]
[401364415,1768157443702,-468.77065485,0.00017455,2]
[401364416,1768157443712,-150.0,0.0001746,2]
[401364417,1768157443721,-150.0,0.0001746,2]
[401364418,1768157443731,-4225.8,0.00017467,2]
[401364419,1768157443741,-561.0,0.00017467,2]
[401364420,1768157443751,-468.77065485,0.00017473,2]
[401364421,1768157443760,-150.0,0.00017486,2]
[401364422,1768157443770,-150.0,0.00017486,2]
[401364423,1768157443780,-468.77065485,0.00017491,2]
[401364424,1768157443790,-158.9254365,0.00017499,2]
[401364425,1768157443799,-19600.0,0.000175,6]
[401364426,1768157443810,-468.77065485,0.00017509,2]
[401364427,1768157443819,-4225.8,0.00017521,2]
[401364428,1768157443829,-468.77065485,0.00017527,2]
[401364429,1768157443839,-211.20104298,0.00017534,2]
[401364430,1768157443849,-166.66,0.00017544,2]
[401364431,1768157443859,-468.77065485,0.00017545,2]
[401364432,1768157443869,-150.0,0.0001755,2]
[401364433,1768157443880,-468.77065485,0.00017564,2]
[401364434,1768157443889,-11637.69415423,0.00017573,2]
[401364435,1768157443899,-4225.8,0.00017574,2]
[401364436,1768157443910,-468.77065485,0.00017582,2]
[401364437,1768157443919,-150.0,0.00017585,2]
[401364438,1768157443928,-164.94,0.0001759,2]
[401364439,1768157443938,-11601.40057606,0.00017594,2]
[401364440,1768157443947,-574.12855637,0.000176,2]
[401364441,1768157443957,-468.77065485,0.000176,2]
[401364442,1768157443966,-19600.0,0.000176,6]
[401364443,1768157443976,-330.14190427,0.00017607,2]
[401364444,1768157443986,-468.77065485,0.00017618,2]
[401364445,1768157443995,-500.73774285,0.00017621,2]
[401364446,1768157444006,-169.26261672,0.00017621,2]
[401364447,1768157444016,-500.91201932,0.00017621,2]
[401364448,1768157444026,-500.66892907,0.00017621,2]
[401364449,1768157444035,-1000.0,0.00017621,2]
[401364450,1768157444046,-501.18596631,0.00017621,2]
[401364451,1768157444055,-500.88678731,0.00017621,2]
[401364452,1768157444064,-1000.0,0.00017621,2]
[401364453,1768157444074,-500.78603367,0.00017621,2]
[401364454,1768157444084,-1000.0,0.00017621,2]
[401364455,1768157444093,-414.52858729,0.00017621,2]
[401364456,1768157444103,-312.9434502,0.00017621,2]
[401364457,1768157444112,-418.63063862,0.00017621,2]
[401364458,1768157444122,-835.02912149,0.00017621,2]
[401364459,1768157444131,-1000.0,0.00017621,2]
[401364460,1768157444141,-1000.0,0.00017621,2]
[401364461,1768157444150,-1001.80765562,0.00017621,2]
[401364462,1768157444160,-1000.0,0.00017621,2]
[401364463,1768157444170,-1003.68229257,0.00017621,2]
[401364464,1768157444179,-501.45467854,0.00017621,2]
[401364465,1768157444189,-1000.0,0.00017621,2]
[401364466,1768157444199,-1000.0,0.00017621,2]
[401364467,1768157444209,-1001.71787449,0.00017621,2]
[401364468,1768157444219,-4225.8,0.00017627,2]
[401364469,1768157444229,-468.77065485,0.00017636,2]
[401364470,1768157444239,-150.0,0.0001764,2]
[401364471,1768157444249,-150.0,0.0001764,2]
[401364472,1768157444259,-150.0,0.0001764,2]
[401364473,1768157444268,-150.0,0.0001764,2]
[401364474,1768157444278,-3755.81126593,0.0001764,2]
[401364475,1768157444287,-1435.052,0.00017647,2]
[401364476,1768157444297,-468.77065485,0.00017655,2]
[401364477,1768157444307,-28016.0,0.00017671,2]
[401364478,1768157444316,-468.77065485,0.00017673,2]
[401364479,1768157444326,-1589.41,0.00017676,2]
[401364480,1768157444335,-834.0,0.0001768,2]
[401364481,1768157444345,-4225.8,0.0001768,2]
[401364482,1768157444354,-468.77065485,0.00017691,2]
[401364483,1768157444365,-19600.0,0.000177,6]
[401364484,1768157444375,-1000.0,0.000177,2]
[401364485,1768157444385,-468.77065485,0.00017709,2]
[401364486,1768157444394,-150.0,0.00017723,2]
[401364487,1768157444404,-468.77065485,0.00017727,2]
[401364488,1768157444413,-4225.8,0.00017734,2]
[401364489,1768157444422,-3798.0,0.0001774,2]
[401364490,1768157444431,-150.0,0.00017743,2]
[401364491,1768157444441,-150.0,0.00017743,2]
[401364492,1768157444450,-468.77065485,0.00017745,2]
[401364493,1768157444460,-468.77065485,0.00017764,2]
[401364494,1768157444469,-150.0,0.00017775,2]
[401364495,1768157444479,-468.77065485,0.00017782,2]
[401364496,1768157444489,-1000.0,0.00017783,2]
[401364497,1768157444499,-1000.0,0.00017786,2]
[401364498,1768157444508,-4225.8,0.00017787,2]
[401364499,1768157444518,-468.77065485,0.000178,2]
[401364500,1768157444527,-1000.0,0.000178,2]
[401364501,1768157444536,-19600.0,0.000178,6]
[401364502,1768157444547,-468.77065485,0.00017818,2]
[401364503,1768157444557,-150.0,0.0001782,2]
[401364504,1768157444566,-150.0,0.0001782,2]
[401364505,1768157444575,-2201.92484839,0.0001783,2]
[401364506,1768157444585,-468.77065485,0.00017836,2]
[401364507,1768157444594,-4225.8,0.0001784,2]
[401364508,1768157444603,-468.77065485,0.00017855,2]
[401364509,1768157444613,-200.0,0.00017855,2]
[401364510,1768157444622,-200.0,0.00017856,2]
[401364511,1768157444631,-200.0,0.00017856,2]
[401364512,1768157444641,-226.62,0.00017861,2]
[401364513,1768157444650,-150.0,0.00017862,2]
[401364514,1768157444660,-25000.0,0.00017865,3]
[401364515,1768157444669,-468.77065485,0.00017873,2]
[401364516,1768157444679,-25000.0,0.00017874,3]
[401364517,1768157444689,-25000.0,0.00017882,3]
[401364518,1768157444698,-468.77065485,0.00017891,2]
[401364519,1768157444708,-25000.0,0.00017891,3]
[401364520,1768157444717,-4225.8,0.00017893,2]
[401364521,1768157444726,-1741.4494,0.000179,2]
[401364522,1768157444736,-243.633,0.000179,2]
[401364523,1768157444745,-25000.0,0.000179,3]
[401364524,1768157444755,-298.0985927,0.000179,2]
[401364525,1768157444766,-10000.0,0.000179,2]
[401364526,1768157444776,-151.0,0.000179,2]
[401364527,1768157444786,-151.0,0.000179,2]
[401364528,1768157444795,-151.0,0.000179,2]
[401364529,1768157444805,-151.0,0.000179,2]
[401364530,1768157444815,-151.0,0.000179,2]
[401364531,1768157444824,-156.262018,0.000179,2]
[401364532,1768157444834,-151.0,0.000179,2]
[401364533,1768157444843,-161.879998,0.000179,2]
[401364534,1768157444853,-156.262018,0.000179,2]
[401364535,1768157444862,-156.262018,0.000179,2]
[401364536,1768157444872,-156.262018,0.000179,2]
[401364537,1768157444881,-151.0,0.000179,2]
[401364538,1768157444891,-175.360482,0.000179,2]
[401364539,1768157444900,-151.0,0.000179,2]
[401364540,1768157444910,-151.0,0.000179,2]
[401364541,1768157444920,-330.14190427,0.000179,2]
[401364542,1768157444929,-151.0,0.000179,2]
[401364543,1768157444939,-151.0,0.000179,2]
[401364544,1768157444949,-151.0,0.000179,2]
[401364545,1768157444958,-151.0,0.000179,2]
[401364546,1768157444967,-24323.20926535,0.000179,3]
[401364547,1768157444977,-151.0,0.000179,2]
[401364548,1768157444986,-151.0,0.000179,2]
[401364549,1768157444995,-151.0,0.000179,2]
[401364550,1768157445005,-151.0,0.000179,2]
[401364551,1768157445017,-151.0,0.000179,2]
[401364552,1768157445027,-889.70227298,0.000179,2]
[401364553,1768157445036,-889.70227298,0.000179,2]
[401364554,1768157445045,-889.70227298,0.000179,2]
[401364555,1768157445056,-889.70227298,0.000179,2]
[401364556,1768157445066,-889.70227298,0.000179,2]
[401364557,1768157445075,-889.70227298,0.000179,2]
[401364558,1768157445086,-19918.0,0.000179,6]
[401364559,1768157445096,-889.70227298,0.000179,2]
[401364560,1768157445105,-889.70227298,0.000179,2]
[401364561,1768157445115,-889.70227298,0.000179,2]
[401364562,1768157445124,-889.70227298,0.000179,2]
[401364563,1768157445134,-889.70227298,0.000179,2]
[401364564,1768157445143,-889.70227298,0.000179,2]
[401364565,1768157445152,-1000.0,0.000179,2]
[401364566,1768157445162,-2094.44971826,0.000179,2]
[401364567,1768157445172,-294.7401385,0.000179,2]
[401364568,1768157445181,-11601.40057606,0.000179,2]
[401364569,1768157445191,-906.513466,0.000179,2]
[401364570,1768157445200,-906.513466,0.000179,2]
[401364571,1768157445209,-906.513466,0.000179,2]
[401364572,1768157445219,-151.0,0.000179,2]
[401364573,1768157445228,-791.45935323,0.000179,3]
[401364574,1768157445238,-906.513466,0.000179,2]
[401364575,1768157445247,-151.0,0.000179,2]
[401364576,1768157445256,-151.0,0.000179,2]
[401364577,1768157445265,-275.980319,0.000179,2]
[401364578,1768157445274,-11637.69415423,0.000179,2]
[401364579,1768157445283,-275.980319,0.000179,2]
[401364580,1768157445293,-275.980319,0.000179,2]
[401364581,1768157445302,-151.0,0.000179,2]
[401364582,1768157445311,-275.980319,0.000179,2]
[401364583,1768157445321,-8893.0,0.000179,2]
[401364584,1768157445330,-1000.0,0.00017905,2]
[401364585,1768157445340,-468.77065485,0.00017909,2]
[401364586,1768157445349,-468.77065485,0.00017927,2]
[401364587,1768157445359,-1000.0,0.00017934,2]
[401364588,1768157445368,-343.85625279,0.00017938,2]
[401364589,1768157445378,-468.77065485,0.00017945,2]
[401364590,1768157445387,-4225.8,0.00017947,2]
[401364591,1768157445398,-1589.41,0.0001795,2]
[401364592,1768157445408,-468.77065485,0.00017964,2]
[401364593,1768157445418,-498.39272947,0.00017973,2]
[401364594,1768157445427,-500.0,0.00017973,2]
[401364595,1768157445437,-500.0,0.00017973,2]
[401364596,1768157445446,-500.0,0.00017973,2]
[401364597,1768157445456,-500.0,0.00017973,2]
[401364598,1768157445467,-500.0,0.00017973,2]
[401364599,1768157445476,-380.05360747,0.00017973,2]
[401364600,1768157445486,-500.0,0.00017973,2]
[401364601,1768157445496,-500.0,0.00017973,2]
[401364602,1768157445505,-500.0,0.00017973,2]
[401364603,1768157445515,-500.0,0.00017973,2]
[401364604,1768157445524,-500.0,0.00017973,2]
[401364605,1768157445533,-500.0,0.00017973,2]
[401364606,1768157445543,-500.0,0.00017973,2]
[401364607,1768157445553,-500.0,0.00017973,2]
[401364608,1768157445562,-500.0,0.00017973,2]
[401364609,1768157445572,-500.0,0.00017973,2]
[401364610,1768157445582,-500.0,0.00017973,2]
[401364611,1768157445591,-500.0,0.00017973,2]
[401364612,1768157445601,-500.0,0.00017973,2]
[401364613,1768157445611,-500.0,0.00017973,2]
[401364614,1768157445620,-159.476491,0.00017973,2]
[401364615,1768157445629,-2039.220797,0.00017973,2]
[401364616,1768157445639,-2039.220797,0.00017973,2]
[401364617,1768157445648,-151.0,0.00017973,2]
[401364618,1768157445658,-2039.220797,0.00017973,2]
[401364619,1768157445667,-2039.220797,0.00017973,2]
[401364620,1768157445676,-465.445525,0.00017973,2]
[401364621,1768157445686,-465.445525,0.00017973,2]
[401364622,1768157445695,-465.445525,0.00017973,2]
[401364623,1768157445704,-465.445525,0.00017973,2]
[401364624,1768157445714,-282.28364,0.00017973,2]
[401364625,1768157445723,-151.0,0.00017973,2]
[401364626,1768157445732,-623.001243,0.00017973,2]
[401364627,1768157445742,-282.28364,0.00017973,2]
[401364628,1768157445752,-151.0,0.00017973,2]
[401364629,1768157445761,-623.001243,0.00017973,2]
[401364630,1768157445771,-282.28364,0.00017973,2]
[401364631,1768157445781,-391.846549,0.00017973,2]
[401364632,1768157445790,-623.001243,0.00017973,2]
[401364633,1768157445800,-151.0,0.00017973,2]
[401364634,1768157445809,-569.671721,0.00017973,2]
[401364635,1768157445819,-282.28364,0.00017973,2]
[401364636,1768157445828,-151.0,0.00017973,2]
[401364637,1768157445838,-623.001243,0.00017973,2]
[401364638,1768157445848,-391.846549,0.00017973,2]
[401364639,1768157445858,-569.671721,0.00017973,2]
[401364640,1768157445868,-391.846549,0.00017973,2]
[401364641,1768157445877,-569.671721,0.00017973,2]
[401364642,1768157445887,-391.846549,0.00017973,2]
[401364643,1768157445896,-569.671721,0.00017973,2]
[401364644,1768157445907,-2068.70979,0.00017973,2]
[401364645,1768157445917,-2068.70979,0.00017973,2]
[401364646,1768157445926,-2068.70979,0.00017973,2]
[401364647,1768157445935,-2068.70979,0.00017973,2]
[401364648,1768157445944,-151.0,0.00017973,2]
[401364649,1768157445954,-704.160543,0.00017973,2]
[401364650,1768157445964,-151.0,0.00017973,2]
[401364651,1768157445975,-704.160543,0.00017973,2]
[401364652,1768157445984,-151.0,0.00017973,2]
[401364653,1768157445993,-704.160543,0.00017973,2]
[401364654,1768157446002,-704.160543,0.00017973,2]
[401364655,1768157446016,-151.0,0.00017973,2]
[401364656,1768157446025,-151.0,0.00017973,2]
[401364657,1768157446035,-151.0,0.00017973,2]
[401364658,1768157446044,-151.0,0.00017973,2]
[401364659,1768157446054,-151.0,0.00017973,2]
[401364660,1768157446063,-1018.724913,0.00017973,2]
[401364661,1768157446072,-151.0,0.00017973,2]
[401364662,1768157446081,-1018.724913,0.00017973,2]
[401364663,1768157446091,-280.30467,0.00017973,2]
[401364664,1768157446100,-1018.724913,0.00017973,2]
[401364665,1768157446109,-1018.724913,0.00017973,2]
[401364666,1768157446119,-438.857825,0.00017973,2]
[401364667,1768157446128,-438.857825,0.00017973,2]
[401364669,1768157446137,-438.857825,0.00017973,2]
[401364671,1768157446146,-438.857825,0.00017973,2]
[401364673,1768157446155,-468.77065485,0.00017982,2]
[401364675,1768157446165,-500.0,0.00017982,2]
[401364677,1768157446175,-204.2861563,0.00017989,2]
[401364679,1768157446184,-150.0,0.0001799,2]
[401364681,1768157446193,-936.49962306,0.0001799,2]
[401364683,1768157446203,-936.49962306,0.0001799,2]
[401364685,1768157446212,-19897.1332472,0.00017997,2]
[401364687,1768157446221,-166.9455236,0.00017999,2]
[401364689,1768157446230,-300.0,0.00017999,2]
[401364691,1768157446239,-500.0,0.00017999,2]
[401364692,1768157446248,-500.0,0.00017999,2]
[401364693,1768157446258,-174.1373823,0.00017999,2]
[401364694,1768157446267,-300.0,0.00017999,2]
[401364695,1768157446276,-300.0,0.00017999,2]
[401364696,1768157446285,-300.0,0.00017999,2]
[401364697,1768157446295,-673.04563665,0.00017999,2]
[401364698,1768157446305,-150.0,0.00018,2]
[401364699,1768157446314,-150.0,0.00018,2]
[401364700,1768157446323,-150.0,0.00018,2]
[401364701,1768157446332,-150.0,0.00018,2]
[401364702,1768157446342,-150.0,0.00018,2]
[401364703,1768157446351,-150.0,0.00018,2]
[401364704,1768157446360,-150.0,0.00018,2]
[401364705,1768157446369,-150.0,0.00018,2]
[401364706,1768157446379,-150.0,0.00018,2]
[401364707,1768157446389,-150.0,0.00018,2]
[401364708,1768157446399,-150.0,0.00018,2]
[401364709,1768157446408,-468.77065485,0.00018,2]
[401364710,1768157446417,-2450994.8206514,0.00018,2]
[401364711,1768157447250,-1650.99640451,0.00018,2]
[401364712,1768157447262,-13177.90426045,0.00018,2]
[401364713,1768157447273,-3115.15628335,0.00018,2]
[401364714,1768157447284,-4177.18063541,0.00018,2]
[401364715,1768157447296,-386141.08476968,0.00018,2]
[401364716,1768157447308,-18872.80445432,0.00018,2]
[401364717,1768157447358,-614.08054182,0.00018,2]
[401364718,1768157447948,-174.04637096,0.00015049,2]
[401364719,1768157447958,-155.90573767,0.00015049,2]
[401364720,1768157447970,-61.71756826,0.00015049,2]
[401364721,1768157447979,-170.8149692,0.00017165,2]
[401364722,1768157447988,-203.90784295,0.000179,2]
[401364723,1768157447999,-1509.73600882,0.000179,2]
[401364724,1768157448012,-5336.55705088,0.000179,2]
[401364725,1768157448021,-13319.22712858,0.00018,2]
[401364726,1768157448418,-151.0,0.000179,2]
[401364727,1768157448427,-270314.37782372,0.00018,2]
[401364728,1768157448467,-940.11018899,0.00018,2]
[401364729,1768157448478,-1355.6236504,0.00018,2]
[401364730,1768157575548,666.64,0.00013699,2]
[401364731,1768157587297,198.55,8.435e-05,2]
[401364732,1768157587384,198.55,8.862e-05,2]
[401364733,1768157587454,198.55,9.288e-05,2]
[401364734,1768157587509,198.55,9.715e-05,2]
[401364735,1768157587652,198.55,0.00010141,2]
[401364736,1768157587854,198.55,0.00010568,2]
[401364737,1768157588040,198.55,0.00010994,2]
[401364738,1768157588402,198.55,0.00011421,2]
[401364739,1768157588610,198.55,0.00011848,2]
[401364740,1768157588805,198.55,0.00012274,2]
[401364741,1768157589007,198.55,0.00012701,2]
[401364742,1768157589401,198.55,0.00013127,2]
[401364743,1768157589591,198.55,0.00013554,2]
[401364744,1768157592984,-198.55,0.0001398,2]
[401364745,1768157593008,-103.47209706,0.00014407,2]
[401364746,1768157702800,427.02,0.00027397,120]
[401364755,1768157858800,326.28361131,0.00027397,120]
[401364757,1768158002622,405.67,0.00027397,120]
[401364762,1768158013009,-95.07790294,0.00014407,2]
[401364763,1768158013033,-98.00869296,0.00014407,2]
[401364764,1768158014492,-96.99130704,0.00014407,2]
[401364765,1768158014516,-248.00869296,0.00014407,2]
[401364769,1768158193903,-195.0,0.00014335,2]
[401364770,1768158193931,-20.99130704,0.00014407,2]
[401364771,1768158193958,-61.16451643,0.00014422,2]
[401364772,1768158196755,-351.13458399,0.00014422,2]
[401364773,1768158198274,-234.8253373,0.00014422,2]
[401364774,1768158200595,-307.68370555,0.00014422,2]
[401364775,1768158201776,-197.30505796,0.00014422,2]
[401364776,1768158237996,-171.3506534,0.0001435,2]
[401364777,1768158239430,-245.30934677,0.0001435,2]
[401364778,1768158242574,-286.8253373,0.0001435,2]
[401364779,1768158244937,-161.61997633,0.0001435,2]
[401364780,1768158246417,-305.0,0.0001435,2]
[401364781,1768158303250,385.38,0.00027397,120]
[401364782,1768158313038,-298.73258183,0.0001435,2]
[401364783,1768158314508,-297.33914041,0.0001435,2]
[401364784,1768158403103,-166.66,0.00014415,2]
[401364785,1768158403126,-81.39759627,0.00014422,2]
[401364786,1768158445080,160.5,0.00011417,2]
[401364789,1768158549134,-12.1392025,0.00014422,2]
[401364790,1768158549155,-195.0,0.00014496,2]
[401364791,1768158549175,-380.8607975,0.0001457,2]
[401364792,1768158573484,-114.2257984,0.0001457,2]
[401364793,1768158573506,-166.66,0.00014718,2]
[401364794,1768158573527,-300.0,0.00014749,2]
[401364795,1768158573549,-150.0,0.00014749,2]
[401364796,1768158573573,-300.0,0.00014749,2]
[401364797,1768158573599,-17848.9980739,0.0001475,2]
[401364798,1768158602934,366.11,0.00027397,120]
[401364810,1768158632027,-434.56043116,0.00014714,2]
[401364811,1768158632038,-272.0,0.00014714,2]
[401364812,1768158632048,-170.8149692,0.00014714,2]
[401364813,1768158632058,-300.0,0.00014749,2]
[401364814,1768158632068,-1200.0,0.00014749,2]
[401364815,1768158632078,-2134.98019901,0.0001475,2]
[401364816,1768158632100,-11121.5109642,0.0001475,2]
[401364818,1768158632111,-1429.56019822,0.0001475,2]
[401364819,1768158632122,-657.85661962,0.0001475,2]
[401364820,1768158632133,-344.58,0.0001475,2]
[401364821,1768158632144,-1783.43233148,0.0001475,2]
[401364822,1768158632155,-548.87965123,0.0001475,2]
[401364823,1768158632167,-476.68734053,0.0001475,2]
[401364824,1768158632179,-1100.7542825,0.0001475,2]
[401364825,1768158632190,-414.5029998,0.0001475,2]
[401364826,1768158632201,-1501.99056459,0.0001475,2]
[401364829,1768158632326,-170.8149692,0.00014714,2]
[401364831,1768158632336,-3896.21951091,0.0001475,2]
[401364834,1768158632347,-5874.72552576,0.0001475,2]
[401364838,1768158638165,-3947.13980468,0.0001475,2]
[401364839,1768158638221,-1221.00880848,0.0001475,2]
[401364840,1768158638274,-478.37891291,0.0001475,2]
[401365020,1768158640275,-1358.10438257,0.0001475,2]
[401365032,1768158640377,-943860.68982961,0.0001475,2]
[401365034,1768158640387,-335.86923902,0.00014814,2]
[401365036,1768158640397,-198.55,0.00014833,2]
[401365038,1768158640406,-298.09859274,0.0001485,2]
[401365040,1768158640415,-10473.92473887,0.0001485,2]
[401365042,1768158640424,-13325.04757223,0.0001485,2]
[401365044,1768158640434,-6154.1931,0.0001485,2]
[401365046,1768158640444,-18600.0,0.000149,5]
[401365048,1768158640453,-500.0,0.00014949,2]
[401365050,1768158640462,-500.0,0.00014949,2]
[401365052,1768158640470,-500.0,0.00014949,2]
[401365054,1768158640479,-500.0,0.00014949,2]
[401365055,1768158640488,-126904.12295913,0.00014949,2]
[401365057,1768158640498,-1000.0,0.0001495,2]
[401365095,1768158640801,-243.633,0.0001495,2]
[401365099,1768158640845,-166.66,0.00015022,2]
[401365101,1768158640855,-500.0,0.00015049,2]
[401365103,1768158640864,-500.0,0.00015049,2]
[401365105,1768158640873,-500.0,0.00015049,2]
[401365107,1768158640883,-500.0,0.00015049,2]
[401365109,1768158640892,-500.0,0.00015049,2]
[401365111,1768158640901,-500.0,0.00015049,2]
[401365114,1768158640910,-500.0,0.00015049,2]
[401365116,1768158640921,-500.0,0.00015049,2]
[401365118,1768158640930,-1245.65,0.00015144,2]
[401365120,1768158640940,-10473.9247388,0.00015189,2]
[401365122,1768158640949,-13325.0475722,0.00015189,2]
[401365124,1768158640959,-500.0,0.00015219,2]
[401365126,1768158640968,-500.0,0.00015219,2]
[401365128,1768158640977,-174.1373823,0.00015219,2]
[401365130,1768158640986,-500.0,0.00015219,2]
[401365132,1768158640995,-500.0,0.00015219,2]
[401365134,1768158641004,-500.0,0.00015219,2]
[401365136,1768158641013,-500.0,0.00015219,2]
[401365138,1768158641022,-500.0,0.00015219,2]
[401365140,1768158641031,-500.0,0.00015219,2]
[401365142,1768158641040,-500.0,0.00015219,2]
[401365144,1768158641049,-386.65632401,0.00015219,2]
[401365146,1768158641058,-505.19604421,0.00015219,2]
[401365148,1768158641067,-936.49962306,0.00015255,2]
[401365149,1768158641076,-198.55,0.0001526,2]
[401365151,1768158641085,-1272.34,0.00015266,2]
[401365153,1768158641095,-955.94,0.0001531,2]
[401365156,1768158641105,-9999.99,0.0001531,2]
[401365157,1768158641115,-150.99,0.0001531,2]
[401365159,1768158641124,-166.66,0.00015325,2]
[401365161,1768158641134,-500.0,0.00015325,2]
[401365163,1768158641144,-1289.0,0.00015349,2]
[401365166,1768158641153,-298.0985927,0.00015358,2]
[401365168,1768158641163,-434.56043114,0.00015416,2]
[401365170,1768158641173,-203.27,0.00015469,2]
[401365172,1768158641182,-10473.9247388,0.00015528,2]
[401365174,1768158641191,-13325.0475722,0.00015528,2]
[401365176,1768158641201,-999.0,0.00015553,3]
[401365178,1768158641211,-500.0,0.00015599,2]
[401365180,1768158641220,-166.66,0.00015629,2]
[401365182,1768158641230,-198.55,0.00015687,2]
[401365184,1768158641240,-151.0,0.00015714,2]